{"text_format":"1","workbook":"xlsx","n_sheets":1,"sheets":["Dessaisissement"],"not_rendered":{"charts":0,"images":0,"macros":0,"external_links":0,"defined_names":1,"comments":0,"pivot_tables":0},"unopened":[],"bounds":{"document_bytes":16777216,"sheet_cells":100000,"rows_first":2000,"rows_last":500,"rows_between":2000,"halvings":0,"cell_chars":16384,"cell_head_chars":4096},"cells_cut":0,"cells_raw":0,"read":"whole","date_system":"1900"}

{"sheet":"Dessaisissement","index":0,"n_rows":156,"n_cols":19,"rows_kept":156,"cut":false,"hidden":false,"merged":[[1,0,1,5],[3,7,5,11],[34,7,37,18],[28,7,29,18],[31,7,32,18],[23,7,23,12],[19,0,19,5],[19,7,20,11],[2,6,2,11],[7,7,8,11],[3,0,3,5],[5,0,5,5],[7,0,7,4],[15,0,15,5],[154,0,154,4],[155,0,155,4],[55,0,55,4],[145,0,145,4],[146,0,146,4],[147,0,147,4],[142,0,142,4],[139,0,139,4],[140,0,140,4],[59,0,59,5],[149,7,149,8],[150,7,150,8],[151,7,151,8],[152,7,152,8],[8,0,8,4],[150,0,150,4],[10,0,10,4],[11,0,11,4],[67,1,67,2],[68,1,68,2],[71,1,71,2],[148,7,148,9],[135,0,135,5],[67,3,67,4],[68,3,68,4],[71,3,71,4],[83,7,83,12],[69,1,69,2],[69,3,69,4],[70,1,70,2],[70,3,70,4]]}
[]
["Renonciation à des éléments de fortune"]
[]
["1. Dessaisissement en cas d'aliénation de la fortune",null,null,null,null,null,null,"Il y a dessaisissement en cas d'aliénation de fortune si une personne aliène des parts de fortune sans obligation légale et que la contre-prestation n'atteint pas au moins 90% de la valeur de la contre-prestation\n"]
[]
["1.1. Aliénation d'un immeuble"]
[]
["Valeur vénale de l'immeuble aliéné",null,null,null,null,0,null,"La valeur vénale n'est pas applicable s'il existe légalement un droit d'acquérir un immeuble à une valeur inférieur"]
["Dette de l'immmeuble au moment de l'aliénation",null,null,null,null,0]
[]
["Si immeuble aliéné avec octroi usufruit ou droit d'habitation"]
["Valeur capitalisée de l'usufruit",null,null,null,null,0]
[]
["Montant du dessaisissement pour aliénation d'un immeuble",null,null,null,null,{"$f":"IF(F8-F9-F12<0,0,F8-F9-F12)","v":0}]
[]
["1.2. Aliénation de capitaux"]
[]
[null,null,null,null,null,0]
[]
["1.3. Diminution non justifiée de fortune",null,null,null,null,null,null,"Il y a diminution non justifiée de la fortune si la fortune diminue de façon substantielle sans que le bénéficiaire puisse prouver l'utilisation qu'il en a faite"]
[]
[]
["Année","Solde fortune au 31.12","Crédits durant l'année","Diminution fortune effective","Consommation admise de la fortune après prise en compte des revenus","Diminution non justifiée de capitaux :"]
[2009,0,null,null,null,null,null,"Le premier solde de fortune au 31.12. à remplir est celui qui précède la période de diminution"]
[2010,0,0,{"$f":"IF((B24+C25-B25)>0,(B24+C25-B25),0)","v":0},{"$f":"IF(E41+F41-B41<0,0,E41+F41-B41)","v":59904},{"$f":"IF((D25-E25)>0,(D25-E25),0)","v":0}]
[2011,0,0,0,{"$f":"IF(E42+F42-B42<0,0,E42+F42-B42)","v":60960},0]
[2012,0,0,0,60960,0]
[2013,0,0,0,61472,0]
[2014,0,0,0,61472,0,null,"Le montant forfaitaire est augmenté du montant des contributions d'entretien dues et effectivement versées en vertu du droit de la famille. Si une contribution d'entretien commune pour le conjoint et les enfants a été déterminée dans le jugement de divorce, les enfants ne sont pas pris en compte dans le choix du facture selon l'annexe 8."]
[2015,0,0,0,61472,0]
[2016,0,0,0,61728,0]
[2017,0,0,0,61728,0,null,"Les revenus comprennent toutes les prestations périodiques. La valeur locative d'un immeuble servant d'habitation est exclue. Le revenu net de l'activité lucrative doit être pris en compte dans son intégralité, sans déduction d'une franchise et sans réduction d'un tiers, soit à 20%."]
[2018,0,0,0,61728,0]
[2019,0,0,0,62240,0]
[2020,0,0,0,62240,0,null,"Le montant du dessaisissement correspond:\n- à la diminution de fortune: si l'unité d'assistance disposaient de revenus suffisants pendant les années où la fortune a diminué;\n- à la différence entre la diminution non justifiée de la fortune et la part de fortune utilisée pour l'entretien, s'ils ne disposaient pas de revenus suffisants"]
[2021,0,0,0,62752,0]
[2022,0,0,0,62752,0]
[2023,0,0,0,{"$f":"IF(E54+F54-B54<0,0,E54+F54-B54)","v":64320},{"$f":"IF((D38-E38)>0,(D38-E38),0)","v":0}]
[]
["Année","Revenus effectifs durant l'année","Besoins vitaux","Facteur","Consommation admise","Justificatifs (pensions, Factures, …)"]
[2010,0,18720,3.2,{"$f":"C41*D41","v":59904}]
[2011,0,19050,3.2,60960]
[2012,0,19050,3.2,60960,null,null,"Facteur déterminé selon l'unité d'assistance"]
[2013,0,19210,3.2,61472,null,null,"Personne seule",3.2]
[2014,0,19210,3.2,61472,null,null,"Avec 1 enfant",4.2]
[2015,0,19210,3.2,61472,null,null,"Avec 2 enfants",4.5]
[2016,0,19290,3.2,61728,null,null,"Avec 3+ enfants",4.8]
[2017,0,19290,3.2,61728,null,null,"Couple",5.3]
[2018,0,19290,3.2,61728,null,null,"Avec 1 enfant",6.2]
[2019,0,19450,3.2,62240,null,null,"Avec 2 enfants",6.4]
[2020,0,19450,3.2,62240,null,null,"Avec 3+ enfants",6.7]
[2021,0,19610,3.2,{"$f":"C52*D52","v":62752}]
[2022,0,19610,3.2,{"$f":"C53*D53","v":62752}]
[2023,0,20100,3.2,{"$f":"C54*D54","v":64320}]
[]
["Montant du dessaisissement diminution non justifiée de la fortune",null,null,null,null,{"$f":"SUM(F25:F38)","v":0}]
[]
["Total du dessaisissement par aliénation de fortune",null,null,null,null,{"$f":"SUM(F14,F18,F56)","v":0}]
[]
["2. Dessaisissement en cas de consommation excessive de fortune"]
[]
["2.1 Période à prendre en considération (au plus tôt le 01.01.2021)"]
[]
["Du",null,"Au"]
[]
["2.2 Calcul de la consommation admise de fortune (forfait)"]
[]
["Année","Solde fortune au 01.01 (31.12 de l'année précédente)",null,"Consommation admise (forfait)"]
[2021,null,null,{"$f":"IF(B69=0,0,IF(B69*10%<10000,10000,B69*10%))","v":0}]
[2022,null,null,{"$f":"IF(B70=0,0,IF(B70*10%<10000,10000,B70*10%))","v":0}]
[2023,null,null,{"$f":"IF(B71=0,0,IF(B71*10%<10000,10000,B71*10%))","v":0}]
[2023]
[]
[]
["2.3 Examen de la consommation excessive de la fortune"]
[]
["Consommation effective de la fortune",null,null,null,null,{"$f":"B69-B72","v":0}]
["./. Consommation admise de la fortune",null,null,null,null,{"$f":"SUM(D69:E72)","v":0}]
[]
["Consommation excessive de la fortune",null,null,null,null,{"$f":"IF(F77-F78<0,0,F77-F78)","v":0}]
[]
["2.4 Examen des motifs justificatifs"]
[]
["2.4.1 Entretien usuel",null,null,null,null,null,null,"Attention, durant l'octroi de la PC le montant nécessaire à l'entretien usuel correspond uniquement à l'imputation de la fortune PC."]
[null,null,null,null,null,null,null,"Facteur déterminé selon l'unité d'assistance"]
["Année","Revenus effectifs durant l'année","Besoins vitaux","Facteur","Consommation admise","Entretien usuel",null,"Personne seule",3.2]
[2021,null,19610,null,{"$f":"C87*D87","v":0},{"$f":"IF(B87-E87>0,0,B87-E87)","v":0},{"$f":"IF(F87<(B70-B69),(B70-B69),F87)","v":0},"Avec 1 enfant",4.2]
[2022,null,19610,null,{"$f":"C88*D88","v":0},{"$f":"IF(B88-E88>0,0,B88-E88)","v":0},{"$f":"IF(F88<(B71-B70),(B71-B70),F88)","v":0},"Avec 2 enfants",4.5]
[2023,null,20100,null,0,0,0,"Avec 3+ enfants",4.8]
[null,null,null,null,null,null,null,"Couple",5.3]
[null,null,null,null,null,null,null,"Avec 1 enfant",6.2]
["2.5 Bilan intermédiaire",null,null,null,null,null,null,"Avec 2 enfants",6.4]
[null,null,null,null,null,null,null,"Avec 3+ enfants",6.7]
["Consommation excessive de la fortune",null,null,null,null,{"$f":"F80","v":0}]
["./. Déficit des besoins vitaux",null,null,null,null,{"$f":"SUM(G87:G89)","v":0}]
["./. Indemnités versées à titre de réparation du tort moral"]
[]
["Solde",null,null,null,null,{"$f":"IF(F94+F95+F96<0,0,F94+F95+F96)","v":0}]
[]
["2.6 Autres motifs justificatifs (sur présentation de factures)"]
[]
["2.6.1 Dépenses effectuées en vue de maintenir la valeur d'immeubles "]
["Année","Total"]
[2021]
[2022]
[2023]
[]
["2.6.2 Frais de traitement dentaires (non couverts)"]
["Année","Total"]
[2021]
[2022]
[2023]
[]
["2.6.3 Frais de maladie ou d'invalidité non couverts par une assurance sociale"]
["Année","Total"]
[2021]
[2022]
[2023]
[]
["2.6.4 Frais d'obtention du revenu"]
["Année","Total"]
[2021]
[2022]
[2023]
[]
["2.6.5 Frais de formation et de perfectionnement à des fins professionnelles"]
["Année","Total"]
[2021]
[2022]
[2023]
[]
["Total des autres motifs justificatifs ",null,null,null,null,{"$f":"SUM(B104:B106,B110:B112,B116:B118,B122:B124,B128:B130)","v":0}]
[]
["Total du dessaissisement par consomation excessive :",null,null,null,null,{"$f":"IF(F98-F132<0,0,F98-F132)","v":0}]
[]
["3 Total du dessaisissement"]
[]
["Somme dessaisissement (aliénation et conso. excessive)",null,null,null,null,{"$f":"SUM(F58,(F134-F58))","v":0}]
[]
["Année du dessaisissement"]
["Part de fortune dessaisie déduite",null,null,null,null,{"$f":"(YEAR(TODAY())-(F140+1))*10000","v":20230000}]
[null,null,null,null,null,null,null,"Franchise légale"]
["Total de la fortune dessaisie",null,null,null,null,{"$f":"IF(F138-F141<0,0,F138-F141)","v":0},null,"Personne seule",30000,50000,0]
[null,null,null,null,null,null,null,"Couple",50000]
[null,null,null,null,null,null,null,"Orphelin / enfant*",15000,"*donnant droit à des rentes pour enfants de l'AVS ou de l'AI",null,null,null,15000,30000,45000,60000,75000,0]
["Franchise légale (personne seule/adulte)",null,null,null,null,30000,null,null,0]
["Franchise légale (orphelin/enfant)",null,null,null,null,0]
["Total franchise légale",null,null,null,null,{"$f":"SUM(F146:F147)","v":30000}]
[null,null,null,null,null,null,null,"Part de la fortune convertie en revenu"]
[null,null,null,null,null,null,null,"Statut",null,"Taux"]
["Fortune dessaisie considérée",null,null,null,null,{"$f":"IF(F143-F148<0,0,F143-F148)","v":0},null,"Aide sociale  / AI",null," 1/15",15]
[null,null,null,null,null,null,null,"AVS (à domicile) ou AI en institution",null," 1/10",10]
["Part de la fortune convertie en revenu",null,null,null,"1/",15,null,"AVS (en EMS)",null," 1/10",5]
[]
["Montant annuel à déduire dans les budgets d'aide sociale",null,null,null,null,{"$f":"ROUND((F151/F153)/0.05,0)*0.05","v":0}]
["Montant mensuel à déduire dans les budgets d'aide sociale",null,null,null,null,{"$f":"ROUND((F155/12)/0.05,0)*0.05","v":0}]